Cogmind - Beta 13 @@@ ROGUE MODE // 2024.04.18 @ 14:29:51 Player: Barbarossa Result: Destroyed by EMP Trap Performance ------------- Evolutions (1) 500 Regions Visited (2) 400 Robots Destroyed (17) 85 Value Destroyed (322) 322 Prototype IDs (5) 100 Alien Tech Used (0) 0 Bonus (0) 0 TOTAL SCORE: 1407 Bonus ------- None Cogmind --------- Core Integrity 0/400 Matter 296/300 Energy 99/100 System Corruption 1% Temperature Cool (0) Movement Core (100) Ox1 Location -9/Materials Parts ------- > --- POWER (1) -------- (None) > --- PROPULSION (3) --- (None) > --- UTILITY (3) ------ Small Storage Unit > --- WEAPON (2) ------- (None) > --- INVENTORY (8) ---- VTOL Module VTOL Module VTOL Module Medium Armor Plating Medium Armor Plating Peak State ------------ > --- POWER ------------ Light Ion Engine > --- PROPULSION ------- VTOL Module VTOL Module VTOL Module > --- UTILITY ---------- Small Storage Unit Medium Armor Plating > --- WEAPON ----------- Beam Rifle Beam Rifle > --- INVENTORY -------- Light Ion Engine Hover Unit Heat Sink Disposable Heat Sink Medium Armor Plating Medium Armor Plating Medium Armor Plating Beam Rifle [Rating: 15] Favorites ----------- Power Light Ion Engine Engine Light Ion Engine Propulsion Flight Unit Leg Aluminum Leg Wheel Wheel Hover Unit Hover Unit Flight Unit Flight Unit Utility Small Storage Unit Device Disposable Heat Sink Storage Small Storage Unit Protection Medium Armor Plating Weapon Beam Rifle Energy Gun Beam Rifle Build | -11 -10 -9 ------- Run | Yrd Mat Mat Slots Evolved 2 | . . 2 Power . | . . . Propulsion 1 | . . 1 Utility 1 | . . 1 Weapon . | . . . Parts Attached 18 | . 8 10 Power 3 | . 1 2 Engine 3 | . 1 2 Core . | . . . Reactor . | . . . Propulsion 8 | . 4 4 Treads . | . . . Leg . | . . . Wheel 2 | . 2 . Hover 1 | . . 1 Flight 5 | . 2 3 Utility 2 | . 1 1 Device 1 | . . 1 Storage . | . . . Processor . | . . . Hackware . | . . . Protection 1 | . 1 . Artifact . | . . . Weapon 5 | . 2 3 Energy Gun 5 | . 2 3 Energy Cannon . | . . . Ballistic Gun . | . . . Ballistic Cannon . | . . . Launcher . | . . . Special Weapon . | . . . Impact Weapon . | . . . Slashing Weapon . | . . . Piercing Weapon . | . . . Special Melee Weapon . | . . . Unidentified Prototypes . | . . . Parts Lost 9 | . . 9 Power 2 | . . 2 Propulsion 3 | . . 3 Utility 1 | . . 1 Weapon 3 | . . 3 Highest Loss Streak 9 | . . 9 To Critical Strikes . | . . . Average Slot Usage (%) 89 | . 98 76 Engine 12 | . 14 9 Leg 2 | . 4 . Wheel 8 | . 14 . Flight 14 | . 8 23 Device 1 | . . 3 Storage 12 | . 14 11 Protection 10 | . 12 7 Energy Gun 24 | . 28 20 Naked Turns . | . . . Heaviest Build 23 | 14 23 21 Greatest Support 20 | 20 20 12 Greatest Overweight (x) 5 | . 5 5 Average Overweight (x) 1 | . 1 1 Largest Inventory Capacity 8 | . 8 8 Average Capacity 8 | . 8 8 Most Carried 8 | . 8 8 Average Carried 7 | . 7 7 Final Capacity 8 | 8 8 8 Final Carried 7 | 6 7 5 Class Distribution -------------------- 97% | Mutant Dominant Class ---------------- Mutant | -10/Materials Mutant | -9/Materials Resources | -11 -10 -9 ----------- Run | Yrd Mat Mat Matter Collected 326 | 200 80 46 Remotely . | . . . Salvage Created 501 | . 308 193 Parts 41 | . 22 19 Haulers Intercepted 2 | . 1 1 Recyclers Shooed . | . . . Parts Field Recycled . | . . . Retrieved Matter . | . . . Parts Self-Destructed . | . . . Prevented . | . . . Kills | -11 -10 -9 ------- Run | Yrd Mat Mat Combat Hostiles Destroyed 11 | . 7 4 Guns 10 | . 6 4 Classes Destroyed 5 | . 4 1 Hauler 2 | . 1 1 Watcher 4 | . 2 2 Swarmer 6 | . 3 3 Grunt 4 | . 4 . Sentry 1 | . . 1 Best Kill Streak 3 | . 3 3 Combat Bots Only 3 | . 3 3 Max Kills in Single Turn 1 | . 1 1 Gunslinging . | . . . Exploded . | . . . Melee . | . . . Uniques/NPCs Destroyed . | . . . Combat | -11 -10 -9 -------- Run | Yrd Mat Mat Hostile Shots Fired 134 | . 32 102 Missed 32 | . 9 23 Damage Taken 1149 | . 206 943 Core 459 | . 49 410 Absorbed by Shields . | . . . Core Remaining (%) 90 | 100 80 . Volleys Fired 90 | . 46 44 Largest 2 | . 2 1 Hottest 112 | . 112 56 Shots Fired 127 | . 83 44 Gun 127 | . 83 44 Cannon . | . . . Launcher . | . . . Special . | . . . Kinetic . | . . . Thermal 127 | . 83 44 Explosive . | . . . Electromagnetic . | . . . Robot Hit Streak 17 | . 17 8 Robot Miss Streak 4 | . 4 3 Penetration Max . | . . . Secondary Targets . | . . . Shots Hit Robots 76 | . 47 29 Core Hits 23 | . 12 11 Critical Kills . | . . . Critical Parts Destroyed . | . . . Critical Strikes 13 | . 7 6 Burn 13 | . 7 6 Melee Attacks . | . . . Impact . | . . . Slashing . | . . . Piercing . | . . . Sneak Attacks . | . . . Combat Hostiles . | . . . Follow-up Attacks . | . . . Damage Inflicted 1137 | . 696 441 Guns 1130 | . 696 434 Cannons . | . . . Explosions . | . . . Melee . | . . . Ramming 7 | . . 7 Kinetic . | . . . Thermal 1130 | . 696 434 Explosive . | . . . Electromagnetic . | . . . Impact . | . . . Slashing . | . . . Piercing . | . . . Highest Corruption . | . . . Average Corruption . | . . . Corruption Purged . | . . . Corruption Blocked . | . . . Overload Shots . | . . . Overflow Damage . | . . . Projectiles . | . . . Explosions . | . . . Melee . | . . . Knockbacks . | . . . Impact . | . . . Kinetic . | . . . Secondary . | . . . Self-Inflicted Damage 3 | . . 3 Shots . | . . . Rammed 1 | . . 1 Targets Rammed 1 | . . 1 Kicked . | . . . Crushed . | . . . Highest Temperature 483 | . 483 170 Average Temperature 114 | . 141 61 Received Heat Transfer 366 | . 45 321 Effects 6 | . 6 . Shutdowns 2 | . 2 . Energy Bleed 1 | . 1 . Interference 2 | . 2 . Short Circuit 1 | . 1 . Siege Activations . | . . . Robots Corrupted . | . . . Combat Hostiles . | . . . Parts Fried . | . . . Impact Corruptions . | . . . Robots Melted 1 | . 1 . Combat Hostiles 1 | . 1 . Parts Melted 9 | . 4 5 Heat Transferred 3848 | . 2294 1554 Parts Sabotaged . | . . . Parts Stolen . | . . . Parts Stripped . | . . . Power Chain Reactions . | . . . Alert | -11 -10 -9 ------- Run | Yrd Mat Mat Peak Influence 173 | . 173 151 Initial 9 | . . 9 Average 55 | . 57 53 Maximum Alert Level . | . . . Low Security (%) 100 | . 100 100 Level 1 . | . . . Level 2 . | . . . Level 3 . | . . . Level 4 . | . . . Level 5 . | . . . High Security . | . . . Max Security . | . . . Squads Dispatched 3 | . 2 1 Investigation . | . . . Extermination . | . . . Reinforcement 3 | . 2 1 Assault . | . . . Garrison . | . . . Intercept . | . . . Searches Triggered . | . . . Construction Impeded . | . . . Haulers Reinforced . | . . . Active Scanning Responses . | . . . Cargo Convoy Interrupts . | . . . Stealth | -11 -10 -9 --------- Run | Yrd Mat Mat Distress Signals 2 | . . 2 Communications Jammed . | . . . Distress Signals . | . . . Times Spotted 39 | . 15 24 Peak Tracking Total 9 | . 4 9 Tactical Retreats 4 | . 2 2 Traps | -11 -10 -9 ------- Run | Yrd Mat Mat Traps Triggered 1 | . . 1 Indirectly . | . . . Trap Hack Attempts . | . . . Triggered . | . . . Disarmed . | . . . Reprogrammed . | . . . Reused . | . . . Traps Extracted . | . . . Installed . | . . . Triggered . | . . . Machines | -11 -10 -9 ---------- Run | Yrd Mat Mat Machines Disabled . | . . . Max in Single Turn . | . . . Machines Repaired . | . . . Machines Dismantled . | . . . Machines Sabotaged . | . . . Overloaded Fab Kills . | . . . Hacking | -11 -10 -9 --------- Run | Yrd Mat Mat Machines Accessed 12 | . 7 5 Terminals 11 | . 6 5 Fabricators . | . . . Repair Stations . | . . . Recycling Units 1 | . 1 . Scanalyzers . | . . . Garrison Access . | . . . Total Hacks 35 | . 21 14 Successful 24 | . 16 8 Failed 11 | . 5 6 Catastrophic 1 | . . 1 Database Lockouts . | . . . Manual 19 | . 9 10 Terminals 34 | . 20 14 Fabricators . | . . . Repair Stations . | . . . Recycling Units 1 | . 1 . Scanalyzers . | . . . Garrison Access . | . . . Terminal Hacks 13 | . 9 4 Record 1 | . 1 . Robot Analysis 1 | . . 1 Prototype ID Bank 3 | . 3 . Branch Access Points 1 | . 1 . Terminal Index 2 | . 1 1 Alert Level 1 | . . 1 Unreport Threat 1 | . 1 . Registered Components 2 | . 1 1 Zone Layout 1 | . 1 . Fabricator Hacks . | . . . Repair Station Hacks . | . . . Recycling Unit Hacks 1 | . 1 . Report Inventory 1 | . 1 . Scanalyzer . | . . . Garrison Access Hacks . | . . . Unauthorized Hacks 10 | . 6 4 Terminals 10 | . 6 4 Botnet 10 | . 6 4 Fabricators . | . . . Repair Stations . | . . . Recycling Units . | . . . Scanalyzers . | . . . Garrison Access . | . . . Data Cores Recovered . | . . . Used . | . . . Hacking Detections 10 | . 5 5 Full Trace Events . | . . . Feedback Events . | . . . Feedback Blocked . | . . . Robot Schematics Acquired . | . . . Robots Built . | . . . Authchips . | . . . Time . | . . . Total Robot Build Rating . | . . . Part Schematics Acquired . | . . . Parts Built . | . . . Authchips . | . . . Time . | . . . Total Part Build Rating . | . . . Parts Repaired . | . . . Time . | . . . Parts Recycled . | . . . Recycled Matter . | . . . Retrieved Matter . | . . . Retrieved Components . | . . . Parts Scanalyzed . | . . . Part Schematics Acquired . | . . . Parts Damaged . | . . . Bothacking | -11 -10 -9 ------------ Run | Yrd Mat Mat Used RIF Installer . | . . . Robots Hacked . | . . . Non-combat . | . . . Combat . | . . . Robot Hacks Applied . | . . . Relay Couplers Released . | . . . Fabnet Peak Effective % . | . . . Robots Rewired . | . . . Allies Hacked . | . . . Hacks Repelled . | . . . Allies | -11 -10 -9 -------- Run | Yrd Mat Mat Total Allies . | . . . Largest Group . | . . . Highest-Rated Group . | . . . Highest-Rated Ally . | . . . Total Orders . | . . . Ally Attacks . | . . . Total Damage . | . . . Kills . | . . . Allies Corrupted . | . . . Allies Melted . | . . . Intel | -11 -10 -9 ------- Run | Yrd Mat Mat Robot Analysis Total 1 | . . 1 Derelict Logs Recovered . | . . . Drone Launches . | . . . Drone Recoveries . | . . . Exploration | -11 -10 -9 ------------- Run | Yrd Mat Mat Turns Passed 1386 | . 825 561 Spaces Moved 789 | 1 474 314 Core 22 | . . 22 Treads . | . . . Legs 94 | 1 93 . Wheels 266 | . 266 . Hover 14 | . . 14 Flight 393 | . 115 278 Fastest Speed 29 | 120 95 29 Average Speed 134 | 120 128 142 Slowest Speed 440 | 120 440 435 Overloaded Moves . | . . . Propulsion Burnouts . | . . . Robots Hopped . | . . . Cave-ins Triggered . | . . . Exploration Rate (%) 39 | 1 82 34 Regions Visited 2 Branch Regions . Pre-discovered Areas . | . . . Known Exits Taken . | . . . Unknown Exits Taken 2 | 1 1 . Scrap Searched . | . . . Spaces Dug . | . . . Terrain Destroyed . | . . . Melee . | . . . Projectile . | . . . AOE . | . . . Terrain Rammed . | . . . Walls Destroyed . | . . . Machines Disabled . | . . . Actions | -11 -10 -9 --------- Run | Yrd Mat Mat Total 995 | . 609 386 Wait 68 | . 63 5 Move 787 | . 473 314 Hop . | . . . Pick Up 12 | . 8 4 Fast Attach 5 | . 3 2 Attach 4 | . . 4 Detach 1 | . . 1 Swap 9 | . 5 4 Drop 18 | . 11 7 Fire 90 | . 46 44 Melee . | . . . Ram 1 | . . 1 Kick . | . . . Crush . | . . . Escape Stasis . | . . . Rewire . | . . . Trap . | . . . Miscellaneous . | . . . Route ------- -11/Scrapyard -10/Materials (discovered 4 exits: *Mat x3 / Min) -9/Materials History --------- Turn | Location | Event 1 | -11/Scrapyard | Discovered new exit (range 0) 1 | -11/Scrapyard | Entered Materials 262 | -10/Materials | Discovered new exit (range 13) 301 | -10/Materials | Identified exit to Mines 311 | -10/Materials | Build established: Mutant 523 | -10/Materials | Discovered new exit (range 15) 729 | -10/Materials | Discovered new exit (range 3) 826 | -10/Materials | Entered another Materials area 826 | -9/Materials | Evolved 2 slots: Propulsion x1, Utility x1 1361 | -9/Materials | Core integrity fell below 50% 1373 | -9/Materials | Core integrity fell below 20% 1387 | -9/Materials | Destroyed by EMP Trap Last Messages --------------- 01343_ S-10 Pest suffers critical hit (Burn). 01343_ Lgt. Ion Engine melted. 01343_ S-10 Pest destroyed. 01349_ VTOL Module destroyed. 01353_ Beam Rifle destroyed. 01356_ VTOL Module destroyed. 01358_ G-34 Mercenary suffers critical hit (Burn). 01359_ G-34 Mercenary overheating. 01361_ Beam Rifle destroyed. 01361_ G-34 Mercenary overheating. 01362_ U-05 Engineer builds a Door. 01368_ Beam Rifle destroyed. 01371_ Slammed into O-16 Technician. 01380_ K-01 Serf cleans the Terminal. 01385_ S-10 Pest destroyed. 01386_ Disposable Heat Sink destroyed. 01387_ Triggered EMP Trap. 01387_ A bubble of electromagnetic force engulfs the area. Map ----- +----------------------------------------------------+ | ???????????????????????????????????????????? | | ???????????????????????????????????????????? | | ???????????????????????????????????????????? | | ???????????????????????????????????????????? | | ???????????????????????????????????????????? | | ???????????????????????????????????????????? | | ???????????????????????????????????????????? | | ???????????????????????????????????????????? | | ???????????????????????????????????????????? | | ???????????????????????????????????????????? | | ???????????????????????????????????????????? | | ???????????????????????????????????????????? | | ???????????????????????????????????????????? | | ???????????????????????????????????????????? | | ???????????????????????????????????????????? | | ???????????????????????????????????????????? | | ???????????????????????????????????????????? | | ????????????????????###????????????????????? | | ???????????????????? ##????########???????? | | ????????????????#### #????# #???????? | | ????????????????# ?????# ! #???????? | | ?????????????????? ####### "" #???????? | | ?????????########### ### + T" #???????? | | ?????????# # ^ # "" #???????? | | ?????????# """ # # #???????? | | ?????????# """ + @ ########???????? | | ?????????# """ # """ ^ #??????????????? | | ?????????# #s """ #??????????????? | | ?????????# # s""" ##?????????????? | | ?????????########*%[ ############### | | ????????????##### s kr ! != ==!=!!+ | | ????????????# "T" ############# | | ????????????# #############+#####????????# | | ????????????# #???????# #????????# | | ????????????# #???????# "T" #????????#"" | | ????###?????# #???????# """ #????????#"T | | ??### ####### #???????# #????????#"" | | ??# ## #???????###########????????# | | ??# """ ## #??????????????????????????### | | ??# "Y" ## ############?????????????????? | | ??# " " # = #?????????????????? | | ??# /=%=[ #?????????????????? | | ??# """ #%[=% +?????????????????? | | ??# """ ###/####### #?????????????????? | | ??# """ # *[ #????#?????????????????? | | ??# # """ #??????????????????????? | | ??###+##+### """ #??????????????????????? | | ????# #?# """ / T ???????????????? | | ????# #?# # ?????????????? | | ????# #?# """ #? ###??????????????? | +----------------------------------------------------+ Best States ------------- Heat Dissipation 28 Coolant Potential 50 Energy Generation 10 Energy Capacity 250 Matter Stores 300 Matter Capacity 300 Sight Range 16 Terrain Scan Density 10 Armor Coverage 225 Evasion (%) 63 Item Schematics ----------------- None Robot Schematics ------------------ None Fabricated ------------ Nothing Alien Tech Used ----------------- None Achievements -------------- None Challenges ------------ None Game ------ Seed ArcMediumPenetrator Manual? 0 Play Time 00:15:45 Cumulative 107.2 hours Start 2024.04.18 @ 14:18:53 End 2024.04.18 @ 14:29:51 Sessions 1 Manual Loads 0 Difficulty Rogue Special Mode None Game No. 213 Rogue 213 Adventurer 0 Explorer 0 Win Type - Total 0 Types 0/0/0/0/0/0/0/0/0 Lore% 31 Gallery% 41 Achievement% 27 Wizard Run 0 Options --------- Layout 1 ASCII 0 Keyboard 0 Movement Mouse Keybinds 0 Fullscreen 1 Font 24/Smallcaps Map View 50x40 Zoom Use 0% Tactical HUD 1 Map Filters NONE Filters NONE Steam 1 RUN: 1fc89d84-6af9-4620-8ae2-c2d3bf00e164